Cogmind - Beta 16 @@@ ROGUE MODE // 2025.10.25 @ 12:57:49 Player: Rocko1345 Result: Destroyed by G-67 Veteran with Plasma Rifle Performance ------------- Evolutions (6) 3000 Regions Visited (21) 4200 Robots Destroyed (94) 470 Value Destroyed (2817) 2817 Prototype IDs (42) 840 Alien Tech Used (0) 0 Bonus (1929) 1929 TOTAL SCORE: 13256 Bonus ------- Follower Combat Kills 329 Entered Garrisons 200 Entered DSFs 500 Aligned with FarCom 300 Met Data Miner 300 Met Zhirov 300 Cogmind --------- Core Integrity 0/1150 Matter 285/300 Energy 100/100 System Corruption 7% Temperature Cool (0) Movement Core (50) Location -4/Garrison Parts ------- > --- POWER (2) -------- (None) > --- PROPULSION (3) --- (None) > --- UTILITY (10) ----- Machine Analyzer Advanced Hacking Suite Makeshift System Shield > --- WEAPON (4) ------- (None) > --- INVENTORY (5) ---- Flexi-carbon Leg Myomer Leg Improved Matter Compressor (18) Relay Coupler [Heavy] (11) Compact HERF Cannon Peak State ------------ > --- POWER ------------ Heavy Antimatter Reactor > --- PROPULSION ------- Cooled Gravmag System Cooled Gravmag System Cooled Gravmag System > --- UTILITY ---------- Machine Analyzer 0b10 Decoder Chip [Generic] Makeshift Cloaking Device Experimental Core Shielding Makeshift Hacking Suite Advanced Hacking Suite Advanced Hacking Suite Advanced Hacking Suite Makeshift System Shield Improved Corruption Screen > --- WEAPON ----------- (None) > --- INVENTORY -------- Improved Matter Compressor Relay Coupler [Heavy] [Rating: 84] Favorites ----------- Power Light Nuclear Core Engine Improved Deuterium Engine Power Core Light Nuclear Core Reactor Heavy Antimatter Reactor Propulsion Armored Treads Treads Armored Treads Leg Aluminum Leg Hover Unit Cooled Gravmag System Flight Unit Nuclear Pulse Thruster Utility Improved Signal Interpreter Device Cryofiber Web Storage Medium Storage Unit Processor Improved Signal Interpreter Hackware Makeshift System Shield Protection Experimental Core Shielding Weapon XL Autogun Subcomponent Energy Gun EM Pulse Gun Ballistic Gun XL Autogun Subcomponent Ballistic Cannon Light Cannon Launcher Long-range Missile Launcher Special Weapon Improved Remote Datajack Slashing Weapon Mining Claw Build | -11 -10 -10 -9 -9 -9 -8 -8 -7 -7 -7 -7 -6 -6 -6 -5 -5 -5 -5 -4 -4 -4 ------- Run | Yrd Mat Min Mat Min Exi Min Mat Fac Low Low Dat Pro Fac DSF Fac Upp Upp Zhi Pro Fac Gar Slots Evolved 12 | . . . 2 . . . 2 2 . . . . 2 . 2 . . . . 2 . Power 1 | . . . . . . . . . . . . . . . 1 . . . . . . Propulsion 1 | . . . . . . . . . . . . . . . 1 . . . . . . Utility 8 | . . . 2 . . . . 2 . . . . 2 . . . . . . 2 . Weapon 2 | . . . . . . . 2 . . . . . . . . . . . . . . Parts Attached 85 | 6 2 . 5 3 1 1 6 6 9 5 . 9 3 9 5 2 1 5 2 1 4 Power 12 | 1 . . 1 1 . . 1 1 1 2 . 1 . . 1 . . 1 . . 1 Engine 5 | 1 . . . . . . 1 1 . 1 . . . . . . . . . . 1 Core 6 | . . . 1 1 . . . . 1 1 . 1 . . 1 . . . . . . Reactor 1 | . . . . . . . . . . . . . . . . . . 1 . . . Propulsion 19 | 2 2 . 1 . . . 2 1 . . . 2 1 2 3 . . 3 . . . Treads 4 | . . . . . . . 2 1 . . . . 1 . . . . . . . . Leg 7 | 2 2 . 1 . . . . . . . . 2 . . . . . . . . . Wheel . | . . . . . . . . . . . . . . . . . . . . . . Hover 3 | . . . . . . . . . . . . . . . . . . 3 . . . Flight 5 | . . . . . . . . . . . . . . 2 3 . . . . . . Utility 34 | 1 . . 2 . 1 1 1 4 4 2 . 4 . 3 1 2 1 1 2 1 3 Device 8 | . . . 1 . . 1 1 1 . . . . . . . 1 . . 2 . 1 Storage 10 | 1 . . . . 1 . . 2 3 1 . 1 . . . . . . . . 1 Processor 7 | . . . 1 . . . . 1 . 1 . 2 . . 1 1 . . . . . Hackware 8 | . . . . . . . . . 1 . . 1 . 3 . . 1 1 . 1 . Protection 1 | . . . . . . . . . . . . . . . . . . . . . 1 Artifact . | . . . . . . . . . . . . . . . . . . . . . . Weapon 20 | 2 . . 1 2 . . 2 . 4 1 . 2 2 4 . . . . . . . Energy Gun 2 | 1 . . . . . . . . . . . 1 . . . . . . . . . Energy Cannon . | . . . . . . . . . . . . . . . . . . . . . . Ballistic Gun 11 | 1 . . . 1 . . 1 . 4 . . . . 4 . . . . . . . Ballistic Cannon 1 | . . . . 1 . . . . . . . . . . . . . . . . . Launcher 2 | . . . . . . . . . . . . . 2 . . . . . . . . Special Weapon 2 | . . . . . . . . . . 1 . 1 . . . . . . . . . Impact Weapon . | . . . . . . . . . . . . . . . . . . . . . . Slashing Weapon 2 | . . . 1 . . . 1 . . . . . . . . . . . . . . Piercing Weapon . | . . . . . . . . . . . . . . . . . . . . . . Special Melee Weapon . | . . . . . . . . . . . . . . . . . . . . . . Unidentified Prototypes 9 | . . . . . . . 1 . 1 . . 1 1 . 1 . . 2 . . 2 Parts Lost 52 | . 1 . 1 2 . . . . 3 4 . 11 . 3 8 1 3 . 2 . 13 Power 9 | . . . . 1 . . . . 1 1 . 2 . . 2 . . . . . 2 Propulsion 11 | . . . . 1 . . . . . 2 . . . 1 3 . 1 . . . 3 Utility 21 | . . . . . . . . . 2 1 . 3 . . 3 1 1 . 2 . 8 Weapon 11 | . 1 . 1 . . . . . . . . 6 . 2 . . 1 . . . . Highest Loss Streak 11 | . 1 . 1 1 . . . . 2 2 . 9 . 3 3 3 2 . 1 . 11 To Critical Strikes . | . . . . . . . . . . . . . . . . . . . . . . Average Backups 6 | . 3 7 7 7 6 5 6 7 9 10 10 7 5 5 4 3 3 4 4 3 2 Power . | . . 1 1 . . . . . . . . . . . . . . . . . . Propulsion . | . 1 2 2 3 1 . . . . . . . . . . . . 1 . . . Utility 3 | . . 1 2 2 2 2 2 4 6 6 6 4 4 4 4 3 3 3 4 3 2 Weapon 1 | . . 2 1 1 2 2 2 2 1 2 2 . . . . . . . . . . Tool/Special . | . . . . . . . . . . . . . . . . . . . . . . Unused Backups 13 | . . . . . . . 2 . 2 . . 2 . . . . . 3 1 . 3 Power . | . . . . . . . . . . . . . . . . . . . . . . Propulsion 4 | . . . . . . . . . . . . . . . . . . 2 . . 2 Utility 6 | . . . . . . . . . 2 . . 1 . . . . . 1 1 . 1 Weapon 1 | . . . . . . . 1 . . . . . . . . . . . . . . Tool/Special 2 | . . . . . . . 1 . . . . 1 . . . . . . . . . Average Slot Usage (%) 73 | . 79 71 82 79 83 88 71 75 83 83 76 57 51 48 66 47 52 59 69 68 62 Engine 3 | . 14 14 . . . . 7 7 3 . 7 2 . . . . . . . . . Core 2 | . . . 10 10 11 11 1 . 2 4 . 3 . . 4 . . . . . . Treads 6 | . . . . . . . 15 15 15 7 . . 5 3 . . . . . . . Leg 5 | . 28 28 22 16 17 22 2 . . . . 4 . . . . . . . . . Hover 1 | . . . . . . . . . . . . . . . . . . 10 17 15 12 Device 7 | . . . 9 11 11 11 17 14 7 7 7 7 6 6 3 2 4 . 2 5 4 Storage 12 | . 14 14 11 11 11 11 9 22 21 17 23 12 . . . . . . . . . Processor 8 | . . . 10 11 11 11 9 7 7 7 7 6 13 13 13 20 23 23 20 15 13 Hackware 7 | . . . . . . . . . 5 7 7 12 13 15 26 11 15 20 23 26 23 Ballistic Gun 10 | . 14 14 9 7 11 11 7 7 17 27 23 6 . 2 . . . . . . . Slashing Weapon 1 | . . . 9 11 11 11 1 . . . . . . . . . . . . . . Peak Build Rating 84 | 6 6 6 14 17 21 22 55 66 67 57 41 41 36 49 73 46 50 70 74 76 84 Average Rating 42 | 3 5 6 12 15 18 21 47 63 59 47 41 29 35 32 59 42 44 58 71 76 71 On Entrance 36 | . 6 6 6 13 16 20 22 55 66 57 41 41 21 36 49 44 46 34 70 72 76 Avg Prop Armor Cover (%) 12 | . . . . . . . . . . . . . . 14 11 . . . . . 19 Naked Turns . | . . . . . . . . . . . . . . . . . . . . . . Heaviest Build 39 | 14 14 12 15 17 22 22 35 39 39 30 27 27 16 16 13 6 6 18 23 19 28 Greatest Support 48 | 20 20 20 23 23 23 23 40 48 48 48 3 48 30 30 20 6 6 33 33 33 33 Greatest Overweight (x) 8 | . . . . 1 1 . 1 . . 8 8 8 . 5 . . . 5 . . . Average Overweight (x) . | . . . . . . . . . . 1 8 . . . . . . . . . . Largest Inventory Capacity 10 | 8 8 8 8 8 10 10 10 10 10 10 10 10 5 5 5 5 5 5 5 5 5 Average Capacity 8 | 6 8 8 8 8 8 10 10 10 10 10 10 9 5 5 5 5 5 5 5 5 5 Most Carried 10 | 2 7 8 8 8 8 9 10 10 10 10 10 10 5 5 5 5 5 5 5 3 5 Average Carried 7 | . 3 7 7 7 7 8 7 7 9 10 10 7 5 5 4 3 3 4 4 3 2 Final Capacity 10 | 8 8 8 8 8 10 10 10 10 10 10 10 5 5 5 5 5 5 5 5 5 5 Final Carried 10 | . 7 8 8 8 8 8 7 10 10 10 10 5 5 5 4 3 5 4 4 3 5 Class Distribution -------------------- 29% | Gunner 22% | Mutant 18% | Hacker-Mutant 16% | Skirmisher 9% | Wizard-Mutant 3% | Assassin Dominant Class ---------------- Mutant | -10/Materials Mutant | -10/Mines Mutant | -9/Materials Mutant | -9/Mines Mutant | -9/Exiles Assassin | -8/Mines Skirmisher | -8/Materials Skirmisher | -7/Factory Gunner | -7/Lower Caves Gunner | -7/Lower Caves Gunner | -7/Data Miner Hacker-Mutant | -6/Proximity Caves Hacker-Mutant | -6/Factory Hacker-Mutant | -6/DSF Wizard-Mutant | -5/Factory Hacker-Mutant | -5/Upper Caves Hacker-Mutant | -5/Upper Caves Hacker-Mutant | -5/Zhirov Hacker-Mutant | -4/Proximity Caves Wizard-Mutant | -4/Factory Wizard-Mutant | -4/Garrison Resources | -11 -10 -10 -9 -9 -9 -8 -8 -7 -7 -7 -7 -6 -6 -6 -5 -5 -5 -5 -4 -4 -4 ----------- Run | Yrd Mat Min Mat Min Exi Min Mat Fac Low Low Dat Pro Fac DSF Fac Upp Upp Zhi Pro Fac Gar Matter Collected 4259 | 192 143 54 55 69 . 20 586 568 848 654 . 673 . 47 . 40 129 150 31 . . Remotely . | . . . . . . . . . . . . . . . . . . . . . . Salvage Created 3847 | . 209 99 13 6 . . 812 576 568 1013 . 231 . 320 . . . . . . . Parts 191 | . 14 4 2 . . . 61 27 27 49 . 1 . 6 . . . . . . . Haulers Intercepted 2 | . . . . . . . 2 . . . . . . . . . . . . . . Recyclers Shooed 1 | . . . . . . . . 1 . . . . . . . . . . . . . Parts Field Recycled . | . . . . . . . . . . . . . . . . . . . . . . Retrieved Matter . | . . . . . . . . . . . . . . . . . . . . . . Parts Self-Destructed 87 | . . . . . . . . . 27 52 . 6 . . . . 2 . . . . Prevented . | . . . . . . . . . . . . . . . . . . . . . . Parts Restored . | . . . . . . . . . . . . . . . . . . . . . . Kills | -11 -10 -10 -9 -9 -9 -8 -8 -7 -7 -7 -7 -6 -6 -6 -5 -5 -5 -5 -4 -4 -4 ------- Run | Yrd Mat Min Mat Min Exi Min Mat Fac Low Low Dat Pro Fac DSF Fac Upp Upp Zhi Pro Fac Gar Combat Hostiles Destroyed 75 | . 4 2 1 1 . . 19 7 17 21 . 1 . 2 . . . . . . . Melee 1 | . . . . . . . 1 . . . . . . . . . . . . . . Guns 72 | . 4 2 1 . . . 18 7 17 21 . 1 . 1 . . . . . . . Cannons 1 | . . . . 1 . . . . . . . . . . . . . . . . . AOE 1 | . . . . . . . . . . . . . . 1 . . . . . . . Classes Destroyed 18 | . 2 . 1 . . . 6 2 2 3 . . . 2 . . . . . . . Worker 4 | . . . . . . . 3 1 . . . . . . . . . . . . . Builder 2 | . . . . . . . 1 1 . . . . . . . . . . . . . Hauler 2 | . . . . . . . 2 . . . . . . . . . . . . . . Recycler 2 | . . . . . . . 1 1 . . . . . . . . . . . . . Mechanic 1 | . . . . . . . . 1 . . . . . . . . . . . . . Operator 2 | . . . . . . . 1 1 . . . . . . . . . . . . . Watcher 5 | . 1 . . . . . 3 1 . . . . . . . . . . . . . Swarmer 39 | . . . 1 1 . . 15 . 14 8 . . . . . . . . . . . Grunt 21 | . 4 2 . . . . 3 3 2 6 . 1 . . . . . . . . . Brawler 2 | . . . . . . . . . 1 1 . . . . . . . . . . . Duelist 2 | . . . . . . . . . . 2 . . . . . . . . . . . Sentry 5 | . . . . . . . 1 2 . 2 . . . . . . . . . . . Specialist 1 | . . . . . . . . . . . . . . 1 . . . . . . . Hunter 2 | . . . . . . . . . . 2 . . . . . . . . . . . Programmer 2 | . . . . . . . . 2 . . . . . . . . . . . . . Heavy 1 | . . . . . . . . . . . . . . 1 . . . . . . . Packrat 2 | . . . . . . . . . . . . 2 . . . . . . . . . Samaritan 2 | . . . . . . . . . 1 1 . . . . . . . . . . . Thief 1 | . . . . . . . . . . 1 . . . . . . . . . . . Best Kill Streak 8 | . 3 1 1 1 . . 8 7 4 5 . 1 . 1 . . . . . . . Combat Bots Only 5 | . 2 1 1 1 . . 4 5 4 5 . 1 . 1 . . . . . . . Max Kills in Single Turn 3 | . 1 1 1 1 . . 3 2 1 2 . 1 . 1 . . . . . . . Gunslinging 1 | . . . . . . . . . . 1 . . . . . . . . . . . Exploded 1 | . . . . . . . . . . . . . . 1 . . . . . . . Melee 1 | . . . . . . . 1 . . . . . . . . . . . . . . Uniques/NPCs Destroyed . | . . . . . . . . . . . . . . . . . . . . . . Combat | -11 -10 -10 -9 -9 -9 -8 -8 -7 -7 -7 -7 -6 -6 -6 -5 -5 -5 -5 -4 -4 -4 -------- Run | Yrd Mat Min Mat Min Exi Min Mat Fac Low Low Dat Pro Fac DSF Fac Upp Upp Zhi Pro Fac Gar Hostile Shots Fired 693 | . 36 18 11 31 . . 51 41 42 71 . 72 . 36 65 14 17 . 47 . 141 Missed 250 | . 13 9 2 6 . . 16 11 13 27 . 19 . 14 33 7 8 . 25 . 47 Hits 443 | . 23 9 9 25 . . 35 30 29 44 . 53 . 22 32 7 9 . 22 . 94 Melee 5 | . . . . . . . . . . 3 . 1 . . . . . . . . 1 Projectile 438 | . 23 9 9 25 . . 35 30 29 41 . 52 . 22 32 7 9 . 22 . 93 AOE 5 | . . . . 5 . . . . . . . . . . . . . . . . . Critical Strikes 18 | . . 1 . . . . . 1 . 1 . 2 . 1 1 . . . . . 11 Actively Blocked 4 | . . . . . . . . . . . . . . . . . . . . . 4 Part Disruptions 1 | . . . . . . . . . . . . . . 1 . . . . . . . Damage Taken 7781 | . 312 144 96 385 . . 390 313 428 673 . 1068 . 723 628 139 220 . 335 . 1927 Core 2945 | . 65 24 21 126 . . 49 33 87 84 . 464 . 219 251 117 134 . 103 . 1168 Absorbed by Shields 64 | . . . . . . . . . . . . . . . . . . . 45 . 19 Redirected to Shielding 141 | . . . . . . . . . . . . . . . . . . . . . 141 Regen/Repaired (Parts) 15 | . . . . . . . . 15 . . . . . . . . . . . . . Core Remaining (%) 62 | 100 . 64 . . . 63 91 . . . . 4 . 74 . . . . 39 . . Volleys Fired 256 | . 20 18 6 11 . . 52 28 41 56 . 11 2 9 2 . . . . . . Largest 4 | . 2 1 1 1 . . 1 1 2 4 . 3 1 3 1 . . . . . . Hottest 90 | . 60 20 20 33 . . 60 60 60 80 . 80 43 90 7 . . . . . . Shots Fired 465 | . 34 18 6 11 . . 52 28 54 216 . 25 2 17 2 . . . . . . Gun 445 | . 34 18 6 3 . . 52 28 54 215 . 23 . 12 . . . . . . . Cannon 8 | . . . . 8 . . . . . . . . . . . . . . . . . Launcher 7 | . . . . . . . . . . . . . 2 5 . . . . . . . Special 5 | . . . . . . . . . . 1 . 2 . . 2 . . . . . . Kinetic 439 | . 20 18 6 11 . . 52 28 54 215 . 23 . 12 . . . . . . . Thermal 1 | . . . . . . . . . . . . 1 . . . . . . . . . Explosive 7 | . . . . . . . . . . . . . 2 5 . . . . . . . Electromagnetic 14 | . 14 . . . . . . . . . . . . . . . . . . . . Robot Hit Streak 15 | . 6 6 2 3 . . 8 7 5 9 . 7 . 14 15 . . . . . . Robot Miss Streak 8 | . 3 2 2 4 . . 6 5 5 8 . 3 . 1 . . . . . . . Penetration Max . | . . . . . . . . . . . . . . . . . . . . . . Secondary Targets 9 | . . . . . . . . . . 8 . 1 . . . . . . . . . Max Gunslinging Chain 2 | . . . . . . . . . . 2 . 1 . . . . . . . . . Shots Hit Robots 312 | . 19 12 3 5 . . 52 26 43 115 . 22 . 14 1 . . . . . . Core Hits 158 | . 8 5 1 1 . . 36 21 20 44 . 8 . 13 . . . . . . 1 Critical Kills 1 | . 1 . . . . . . . . . . . . . . . . . . . . Critical Parts Destroyed . | . . . . . . . . . . . . . . . . . . . . . . Critical Strikes 3 | . 1 . . . . . 1 . . . . 1 . . . . . . . . . Destroy 1 | . 1 . . . . . . . . . . . . . . . . . . . . Sever 2 | . . . . . . . 1 . . . . 1 . . . . . . . . . Melee Attacks 25 | . . . 1 2 . . 16 . . . . 6 . . . . . . . . . Impact . | . . . . . . . . . . . . . . . . . . . . . . Slashing 25 | . . . 1 2 . . 16 . . . . 6 . . . . . . . . . Piercing . | . . . . . . . . . . . . . . . . . . . . . . Sneak Attacks 1 | . . . . . . . 1 . . . . . . . . . . . . . . Combat Hostiles . | . . . . . . . . . . . . . . . . . . . . . . Follow-up Attacks . | . . . . . . . . . . . . . . . . . . . . . . Damage Inflicted 9899 | . 285 158 33 101 . . 2427 1613 1556 2204 . 480 . 990 . . . . . . 52 Guns 8624 | . 285 150 33 67 . . 2218 1602 1547 2204 . 303 . 215 . . . . . . . Cannons 34 | . . . . 34 . . . . . . . . . . . . . . . . . Explosions 775 | . . . . . . . . . . . . . . 775 . . . . . . . Melee 372 | . . . . . . . 209 . . . . 163 . . . . . . . . . Ramming 83 | . . 8 . . . . . 11 9 . . 3 . . . . . . . . 52 Kinetic 8520 | . 147 150 33 101 . . 2218 1602 1547 2204 . 303 . 215 . . . . . . . Thermal 11 | . . . . . . . . . . . . 11 . . . . . . . . . Explosive 775 | . . . . . . . . . . . . . . 775 . . . . . . . Electromagnetic 138 | . 138 . . . . . . . . . . . . . . . . . . . . Impact . | . . . . . . . . . . . . . . . . . . . . . . Slashing 372 | . . . . . . . 209 . . . . 163 . . . . . . . . . Piercing . | . . . . . . . . . . . . . . . . . . . . . . Highest Corruption 7 | . . . . . . . . 1 1 1 1 1 . 1 5 5 2 . . . 7 Average Corruption 1 | . . . . . . . . 1 1 1 1 1 . 1 5 4 1 . . . 6 Corruption Purged 5 | . . . . . . . . . . . . . . . . 3 2 . . . . Corruption Blocked 4 | . . . . . . . . . . . . . . . 4 . . . . . . Effects 67 | . . . . . . . . 4 18 7 2 12 . . 13 4 . . . . 7 Message Errors 21 | . . . . . . . . 1 7 2 1 4 . . 4 2 . . . . . Matter Fused 18 | . . . . . . . . 1 4 1 . 3 . . 2 1 . . . . 6 Heat Flow Errors 4 | . . . . . . . . 1 2 . . 1 . . . . . . . . . Energy Discharges 6 | . . . . . . . . 1 . . 1 2 . . 1 . . . . . 1 Parts Fused 2 | . . . . . . . . . 1 . . . . . 1 . . . . . . Data Loss (minor) 10 | . . . . . . . . . 2 2 . 1 . . 4 1 . . . . . Data Loss (major) 4 | . . . . . . . . . 2 . . 1 . . 1 . . . . . . Weapon Failures 2 | . . . . . . . . . . 2 . . . . . . . . . . . Overload Shots . | . . . . . . . . . . . . . . . . . . . . . . Overflow Damage 69 | . . . . . . . 53 . 6 . . 10 . . . . . . . . . Projectiles . | . . . . . . . . . . . . . . . . . . . . . . Explosions . | . . . . . . . . . . . . . . . . . . . . . . Melee 69 | . . . . . . . 53 . 6 . . 10 . . . . . . . . . Knockbacks 1 | . . . . . . . . 1 . . . . . . . . . . . . . Impact 1 | . . . . . . . . 1 . . . . . . . . . . . . . Kinetic . | . . . . . . . . . . . . . . . . . . . . . . Secondary . | . . . . . . . . . . . . . . . . . . . . . . Self-Inflicted Damage 96 | . . . . . . . . . . . . 1 . 72 . . . . . . 23 Shots 2 | . . . . . . . . . . . . . . 2 . . . . . . . Rammed 16 | . . . . . . . . 1 1 . . 2 . . . . . . . . 12 Targets Rammed 18 | . . 2 . . . . . 1 1 . . 2 . . . . . . . . 12 Kicked 2 | . . 2 . . . . . . . . . . . . . . . . . . . Crushed . | . . . . . . . . . . . . . . . . . . . . . . Highest Temperature 368 | . 72 17 . . . . 250 131 213 368 . 65 . . . . . . . . 3 Average Temperature 83 | . 39 9 . . . . 94 61 79 117 . 38 . . . . . . . . 3 Received Heat Transfer 1975 | . 180 102 18 9 . . 135 69 162 132 . 375 . 18 72 60 45 . 72 . 526 Siege Activations . | . . . . . . . . . . . . . . . . . . . . . . Martial Activations . | . . . . . . . . . . . . . . . . . . . . . . Shielding Activations . | . . . . . . . . . . . . . . . . . . . . . . Robots Disrupted . | . . . . . . . . . . . . . . . . . . . . . . Combat Hostiles . | . . . . . . . . . . . . . . . . . . . . . . Robots Corrupted 1 | . . . . . . . . . 1 . . . . . . . . . . . . Combat Hostiles . | . . . . . . . . . . . . . . . . . . . . . . Parts Fried 1 | . . . . . . . . . 1 . . . . . . . . . . . . Impact Corruptions 2 | . . . . . . . . . 2 . . . . . . . . . . . . Robots Melted . | . . . . . . . . . . . . . . . . . . . . . . Combat Hostiles . | . . . . . . . . . . . . . . . . . . . . . . Parts Melted . | . . . . . . . . . . . . . . . . . . . . . . Heat Transferred 80 | . . . . . . . . . . . . 80 . . . . . . . . . Parts Sabotaged . | . . . . . . . . . . . . . . . . . . . . . . Parts Stolen 1 | . . . . . . . . . . 1 . . . . . . . . . . . Parts Stripped . | . . . . . . . . . . . . . . . . . . . . . . Power Chain Reactions . | . . . . . . . . . . . . . . . . . . . . . . Alert | -11 -10 -10 -9 -9 -9 -8 -8 -7 -7 -7 -7 -6 -6 -6 -5 -5 -5 -5 -4 -4 -4 ------- Run | Yrd Mat Min Mat Min Exi Min Mat Fac Low Low Dat Pro Fac DSF Fac Upp Upp Zhi Pro Fac Gar Maximum Alert Level 1 | . . . . . . . 1 . . . . . . . . . . . . . 1 Low Security (%) 93 | 100 100 100 100 100 . 100 76 100 . . . . 100 100 100 . . . . 100 87 Level 1 6 | . . . . . . . 23 . . . . . . . . . . . . . 12 Level 2 . | . . . . . . . . . . . . . . . . . . . . . . Level 3 . | . . . . . . . . . . . . . . . . . . . . . . Level 4 . | . . . . . . . . . . . . . . . . . . . . . . Level 5 . | . . . . . . . . . . . . . . . . . . . . . . High Security . | . . . . . . . . . . . . . . . . . . . . . . Max Security . | . . . . . . . . . . . . . . . . . . . . . . Peak Influence 395 | . 40 63 92 54 . . 248 168 . . . . 125 128 82 . . . . 12 395 Initial 125 | . . . . 31 . . . 91 . . . . 125 . 67 . . . . 12 . Average 47 | . 9 8 34 8 . . 113 78 . . . . 27 68 27 . . . . 5 45 Influence Increases 4015 | . 127 127 187 104 . . 603 373 390 472 . 457 24 158 233 60 195 . 90 . 415 Destroy 0b10 Robot/C 1760 | . 80 80 120 60 . . 380 140 340 420 . 100 . 40 . . . . . . . Destroy 0b10 Robot/NC 105 | . 5 . . . . . 55 30 . . . . . 15 . . . . . . . Destroy Leader 304 | . 22 20 30 10 . . 60 52 50 50 . 10 . . . . . . . . . Allied During Kill 53 | . . 12 18 4 . . . . . 2 . 17 . . . . . . . . . Trap Triggered on 0b10 40 | . . . . . . . . . . . . . . . 40 . . . . . . Successful Hack 115 | . 20 . 4 . . . 17 36 . . . . . . 28 . . . . . 10 Disable Machine 135 | . . 15 15 . . . 30 45 . . . . 15 15 . . . . . . . Destroy Structure 123 | . . . . . . . 46 10 . . . . 9 58 . . . . . . . Partial Spotted 90 | . . . . . . . . . . . . . . . 30 . . . . . 60 Lose Combat Pursuer 1290 | . . . . 30 . . 15 60 . . . 330 . 30 135 60 195 . 90 . 345 Influence Decreases 3620 | . 127 127 105 186 . . 400 444 522 462 10 258 223 30 346 55 114 101 70 20 20 Entered New Map 477 | . . . . 51 . . . 112 50 . 10 . 74 . 61 6 4 101 . 8 . Time Decay 2789 | . 120 127 95 111 . . 400 332 442 422 . 188 149 . 221 40 80 . 50 12 . Lost Part 320 | . 7 . 10 10 . . . . 30 40 . 50 . 30 64 9 30 . 20 . 20 Lost Ally 34 | . . . . 14 . . . . . . . 20 . . . . . . . . . Squads Dispatched 17 | . . . . . . . 2 6 . 1 . 1 1 2 3 . 1 . . . . Investigation 4 | . . . . . . . 1 1 . . . . 1 . 1 . . . . . . Extermination 3 | . . . . . . . . 1 . . . . . . 2 . . . . . . Reinforcement 4 | . . . . . . . 1 1 . . . . . 2 . . . . . . . Assault 3 | . . . . . . . . . . 1 . 1 . . . . 1 . . . . Garrison 3 | . . . . . . . . 3 . . . . . . . . . . . . . Intercept . | . . . . . . . . . . . . . . . . . . . . . . Searches Triggered . | . . . . . . . . . . . . . . . . . . . . . . Construction Impeded 1 | . . . . . . . 1 . . . . . . . . . . . . . . Haulers Reinforced . | . . . . . . . . . . . . . . . . . . . . . . Active Scanning Responses . | . . . . . . . . . . . . . . . . . . . . . . Cargo Convoy Interrupts . | . . . . . . . . . . . . . . . . . . . . . . Stealth | -11 -10 -10 -9 -9 -9 -8 -8 -7 -7 -7 -7 -6 -6 -6 -5 -5 -5 -5 -4 -4 -4 --------- Run | Yrd Mat Min Mat Min Exi Min Mat Fac Low Low Dat Pro Fac DSF Fac Upp Upp Zhi Pro Fac Gar Distress Signals 4 | . . . . . . . 1 2 . . . . . . 1 . . . . . . Communications Jammed . | . . . . . . . . . . . . . . . . . . . . . . Distress Signals . | . . . . . . . . . . . . . . . . . . . . . . Times Spotted 200 | . 5 4 5 7 . . 23 11 17 24 . 24 . 7 24 4 11 . 7 . 27 Peak Tracking Total 16 | . 3 2 3 3 . . 4 4 4 5 . 7 . 7 10 4 9 . 5 . 16 Tactical Retreats 37 | . . . . 1 . . 1 2 . . . 8 . 2 6 1 7 . 3 . 6 Traps | -11 -10 -10 -9 -9 -9 -8 -8 -7 -7 -7 -7 -6 -6 -6 -5 -5 -5 -5 -4 -4 -4 ------- Run | Yrd Mat Min Mat Min Exi Min Mat Fac Low Low Dat Pro Fac DSF Fac Upp Upp Zhi Pro Fac Gar Traps Triggered 7 | . . . . . . . 1 3 . . . . . 1 . . . . . . 2 Indirectly . | . . . . . . . . . . . . . . . . . . . . . . Trap Hack Attempts . | . . . . . . . . . . . . . . . . . . . . . . Triggered . | . . . . . . . . . . . . . . . . . . . . . . Disarmed . | . . . . . . . . . . . . . . . . . . . . . . Reprogrammed 6 | . . . . . . . . . . . . . . . 6 . . . . . . Reused 4 | . . . . . . . . . . . . . . . 4 . . . . . . Traps Extracted . | . . . . . . . . . . . . . . . . . . . . . . Installed . | . . . . . . . . . . . . . . . . . . . . . . Triggered 4 | . . . . . . . . . . . . . . . 4 . . . . . . Machines | -11 -10 -10 -9 -9 -9 -8 -8 -7 -7 -7 -7 -6 -6 -6 -5 -5 -5 -5 -4 -4 -4 ---------- Run | Yrd Mat Min Mat Min Exi Min Mat Fac Low Low Dat Pro Fac DSF Fac Upp Upp Zhi Pro Fac Gar Machines Disabled 10 | . . 1 1 . . . 2 3 . . . 1 1 1 . . . . . . . Max in Single Turn 1 | . . 1 1 . . . 1 1 . . . . 1 1 . . . . . . . Machines Repaired . | . . . . . . . . . . . . . . . . . . . . . . Machines Dismantled . | . . . . . . . . . . . . . . . . . . . . . . Machines Sabotaged . | . . . . . . . . . . . . . . . . . . . . . . Overloaded Fab Kills . | . . . . . . . . . . . . . . . . . . . . . . Hacking | -11 -10 -10 -9 -9 -9 -8 -8 -7 -7 -7 -7 -6 -6 -6 -5 -5 -5 -5 -4 -4 -4 --------- Run | Yrd Mat Min Mat Min Exi Min Mat Fac Low Low Dat Pro Fac DSF Fac Upp Upp Zhi Pro Fac Gar Machines Accessed 55 | . 7 1 3 . 2 . 6 7 2 . 4 . 4 . 10 1 . 6 . 1 1 Terminals 28 | . 7 1 2 . . . 4 3 . . . . 2 . 7 1 . . . . 1 Fabricators 1 | . . . . . . . . . . . . . . . 1 . . . . . . Repair Stations 2 | . . . . . . . . 1 . . . . . . 1 . . . . . . Recycling Units 5 | . . . . . . . 1 2 . . . . 2 . . . . . . . . Scanalyzers 3 | . . . 1 . . . 1 . . . . . . . 1 . . . . . . Garrison Access 2 | . . . . . . . . 1 . . . . . . . . . . . 1 . Total Hacks 169 | . 23 2 10 . 9 . 15 15 7 . 29 . 8 . 29 1 . 16 . 3 2 Successful 126 | . 14 1 4 . 9 . 10 7 7 . 29 . 4 . 21 1 . 16 . 2 1 Failed 40 | . 9 1 5 . . . 4 8 . . . . 4 . 7 . . . . 1 1 Catastrophic 3 | . 1 . . . . . . 1 . . . . 1 . . . . . . . . Database Lockouts 3 | . . . 1 . . . 1 . . . . . . . 1 . . . . . . Manual 36 | . 12 2 3 . 1 . 6 2 . . . . . . 10 . . . . . . Terminals 78 | . 23 2 5 . . . 10 7 . . . . 4 . 24 1 . . . . 2 Fabricators 1 | . . . . . . . . . . . . . . . 1 . . . . . . Repair Stations 4 | . . . . . . . . 2 . . . . . . 2 . . . . . . Recycling Units 9 | . . . . . . . 2 3 . . . . 4 . . . . . . . . Scanalyzers 10 | . . . 5 . . . 3 . . . . . . . 2 . . . . . . Garrison Access 6 | . . . . . . . . 3 . . . . . . . . . . . 3 . Terminal Hacks 96 | . 11 . 1 . 9 . 3 3 7 . 29 . 1 . 14 1 . 16 . . 1 Record 36 | . . . . . 9 . . . 6 . 11 . . . 5 1 . 4 . . . Part Schematic 13 | . . . . . . . . . . . 9 . . . . . . 4 . . . Robot Schematic 6 | . . . . . . . . . . . 6 . . . . . . . . . . Robot Analysis 7 | . 2 . . . . . . . . . . . . . 1 . . 4 . . . Prototype ID Bank 14 | . 3 . . . . . 2 . . . 3 . . . 2 . . 4 . . . Open Door 1 | . . . . . . . . . 1 . . . . . . . . . . . . Open DSF 2 | . . . . . . . . . . . . . 1 . 1 . . . . . . Level Access Points 1 | . . . . . . . . . . . . . . . 1 . . . . . . Branch Access Points 1 | . . . . . . . . . . . . . . . 1 . . . . . . Emergency Access Points 2 | . 1 . . . . . . . . . . . . . . . . . . . 1 Recycling Unit Index 1 | . . . . . . . 1 . . . . . . . . . . . . . . Alert Level 1 | . . . . . . . . 1 . . . . . . . . . . . . . Locate Traps 6 | . 3 . . . . . . 1 . . . . . . 2 . . . . . . Reprogram Traps 1 | . . . . . . . . . . . . . . . 1 . . . . . . Dispatch Records 1 | . . . 1 . . . . . . . . . . . . . . . . . . Patrol Status 1 | . 1 . . . . . . . . . . . . . . . . . . . . Zone Layout 2 | . 1 . . . . . . 1 . . . . . . . . . . . . . Fabricator Hacks 1 | . . . . . . . . . . . . . . . 1 . . . . . . Build 1 | . . . . . . . . . . . . . . . 1 . . . . . . Repair Station Hacks 3 | . . . . . . . . 2 . . . . . . 1 . . . . . . Scan Component 1 | . . . . . . . . 1 . . . . . . . . . . . . . Repair 1 | . . . . . . . . 1 . . . . . . . . . . . . . Refit 1 | . . . . . . . . . . . . . . . 1 . . . . . . Recycling Unit Hacks 6 | . . . . . . . 2 1 . . . . 3 . . . . . . . . Report Inventory 4 | . . . . . . . 1 1 . . . . 2 . . . . . . . . Retrieve Matter 1 | . . . . . . . 1 . . . . . . . . . . . . . . Retrieve Components 1 | . . . . . . . . . . . . . 1 . . . . . . . . Scanalyzer 7 | . . . 3 . . . 2 . . . . . . . 2 . . . . . . Insert Component 2 | . . . 1 . . . . . . . . . . . 1 . . . . . . Analyze 1 | . . . . . . . . . . . . . . . 1 . . . . . . Retrieve Study 4 | . . . 2 . . . 2 . . . . . . . . . . . . . . Garrison Access Hacks 2 | . . . . . . . . . . . . . . . . . . . . 2 . Unlock Access 1 | . . . . . . . . . . . . . . . . . . . . 1 . Coupler Status 1 | . . . . . . . . . . . . . . . . . . . . 1 . Unauthorized Hacks 11 | . 3 1 . . . . 3 1 . . . . . . 3 . . . . . . Terminals 11 | . 3 1 . . . . 3 1 . . . . . . 3 . . . . . . Assimilate 3 | . . . . . . . 1 . . . . . . . 2 . . . . . . Botnet 7 | . 3 1 . . . . 2 1 . . . . . . . . . . . . . Sabotage 1 | . . . . . . . . . . . . . . . 1 . . . . . . Fabricators . | . . . . . . . . . . . . . . . . . . . . . . Repair Stations . | . . . . . . . . . . . . . . . . . . . . . . Recycling Units . | . . . . . . . . . . . . . . . . . . . . . . Scanalyzers . | . . . . . . . . . . . . . . . . . . . . . . Garrison Access . | . . . . . . . . . . . . . . . . . . . . . . Data Cores Recovered 2 | . . . . . . . 1 1 . . . . . . . . . . . . . Used . | . . . . . . . . . . . . . . . . . . . . . . Hacking Detections 34 | . 7 1 3 . . . 6 7 . . . . 3 . 6 . . . . . 1 Full Trace Events 2 | . . . . . . . . 1 . . . . 1 . . . . . . . . Feedback Events . | . . . . . . . . . . . . . . . . . . . . . . Feedback Blocked . | . . . . . . . . . . . . . . . . . . . . . . Robot Schematics Acquired 6 | . . . . . . . . . . . 6 . . . . . . . . . . Robots Built . | . . . . . . . . . . . . . . . . . . . . . . Authchips . | . . . . . . . . . . . . . . . . . . . . . . Time . | . . . . . . . . . . . . . . . . . . . . . . Total Robot Build Rating . | . . . . . . . . . . . . . . . . . . . . . . Part Schematics Acquired 14 | . . . . . . . . . . . 9 . . . 1 . . 4 . . . Parts Built 2 | . . . . . . . . . . . . . . . 2 . . . . . . Authchips . | . . . . . . . . . . . . . . . . . . . . . . Time 128 | . . . . . . . . . . . . . . . 128 . . . . . . Total Part Build Rating 16 | . . . . . . . . . . . . . . . 16 . . . . . . Part Studies Acquired 3 | . . . 1 . . . 2 . . . . . . . . . . . . . . Parts Repaired 1 | . . . . . . . . 1 . . . . . . . . . . . . . Time 38 | . . . . . . . . 38 . . . . . . . . . . . . . Parts Recycled . | . . . . . . . . . . . . . . . . . . . . . . Recycled Matter . | . . . . . . . . . . . . . . . . . . . . . . Retrieved Matter 245 | . . . . . . . 245 . . . . . . . . . . . . . . Retrieved Components 2 | . . . . . . . . . . . . . 2 . . . . . . . . Parts Scanalyzed 1 | . . . . . . . . . . . . . . . 1 . . . . . . Part Schematics Acquired 1 | . . . . . . . . . . . . . . . 1 . . . . . . Parts Damaged . | . . . . . . . . . . . . . . . . . . . . . . Bothacking | -11 -10 -10 -9 -9 -9 -8 -8 -7 -7 -7 -7 -6 -6 -6 -5 -5 -5 -5 -4 -4 -4 ------------ Run | Yrd Mat Min Mat Min Exi Min Mat Fac Low Low Dat Pro Fac DSF Fac Upp Upp Zhi Pro Fac Gar Used RIF Installer . | . . . . . . . . . . . . . . . . . . . . . . Robots Hacked 1 | . . . . . . . . . . . . . . . 1 . . . . . . Non-combat 1 | . . . . . . . . . . . . . . . 1 . . . . . . Combat . | . . . . . . . . . . . . . . . . . . . . . . Robot Hacks Applied 1 | . . . . . . . . . . . . . . . 1 . . . . . . find_chute 1 | . . . . . . . . . . . . . . . 1 . . . . . . Relay Couplers Released 3 | . . . . . . . . 3 . . . . . . . . . . . . . Programmers 3 | . . . . . . . . 3 . . . . . . . . . . . . . Fabnet Peak Effective % . | . . . . . . . . . . . . . . . . . . . . . . Robots Rewired 1 | . . . . . . . . . . 1 . . . . . . . . . . . Allies Hacked . | . . . . . . . . . . . . . . . . . . . . . . Hacks Repelled . | . . . . . . . . . . . . . . . . . . . . . . Allies | -11 -10 -10 -9 -9 -9 -8 -8 -7 -7 -7 -7 -6 -6 -6 -5 -5 -5 -5 -4 -4 -4 -------- Run | Yrd Mat Min Mat Min Exi Min Mat Fac Low Low Dat Pro Fac DSF Fac Upp Upp Zhi Pro Fac Gar Total Allies 6 | . . 2 . . . . . . . 1 . 1 . . 2 . . . . . . Largest Group 2 | . . 2 2 2 . . . . . 1 . 1 . . 2 . . . . . . Highest-Rated Group 96 | . . 41 41 41 . . . . . 30 . 96 . . 52 . . . . . . Highest-Rated Ally 96 | . . 31 31 31 . . . . . 30 . 96 . . 26 . . . . . . Total Orders 2 | . . . . . . . . . . . . . . . 2 . . . . . . STAY 2 | . . . . . . . . . . . . . . . 2 . . . . . . Ally Attacks 47 | . . 15 10 6 . . . . . 3 . 13 . . . . . . . . . Total Damage 1319 | . . 271 127 104 . . . . . 89 . 728 . . . . . . . . . Kills 14 | . . 2 5 2 . . . . . 1 . 4 . . . . . . . . . Allies Corrupted . | . . . . . . . . . . . . . . . . . . . . . . Allies Melted . | . . . . . . . . . . . . . . . . . . . . . . Intel | -11 -10 -10 -9 -9 -9 -8 -8 -7 -7 -7 -7 -6 -6 -6 -5 -5 -5 -5 -4 -4 -4 ------- Run | Yrd Mat Min Mat Min Exi Min Mat Fac Low Low Dat Pro Fac DSF Fac Upp Upp Zhi Pro Fac Gar Active Infowar (turns) 8577 | . . . 202 640 883 298 1363 1107 126 . . 750 655 198 637 137 164 112 204 53 1048 Sensors 4619 | . . . 202 640 883 298 1363 1107 126 . . . . . . . . . . . . Decoding 3046 | . . . . . . . . . . . . 13 655 198 637 137 164 112 204 53 873 Machine Analysis 3958 | . . . . . . . . . . . . 750 655 198 637 137 164 112 204 53 1048 Cloaking 946 | . . . . . . . . . . . . . . . . . . . 47 53 846 Robot Analysis Total 7 | . 2 . . . . . . . . . . . . . 1 . . 4 . . . Derelict Logs Recovered 11 | . . 2 . 1 . . . . 2 1 . 2 . . . 1 1 . 1 . . Drone Launches . | . . . . . . . . . . . . . . . . . . . . . . Drone Recoveries . | . . . . . . . . . . . . . . . . . . . . . . Decoded 0b10 Intel 64 | . . . . . . . . . . . . . 14 6 18 . . . . 2 24 Traps 10 | . . . . . . . . . . . . . 5 . 1 . . . . 2 2 Emergency Access 2 | . . . . . . . . . . . . . . . 2 . . . . . . Items 44 | . . . . . . . . . . . . . 8 5 12 . . . . . 19 Machines 3 | . . . . . . . . . . . . . 1 . 2 . . . . . . Patrols 4 | . . . . . . . . . . . . . . 1 . . . . . . 3 Guards 1 | . . . . . . . . . . . . . . . 1 . . . . . . Exploration | -11 -10 -10 -9 -9 -9 -8 -8 -7 -7 -7 -7 -6 -6 -6 -5 -5 -5 -5 -4 -4 -4 ------------- Run | Yrd Mat Min Mat Min Exi Min Mat Fac Low Low Dat Pro Fac DSF Fac Upp Upp Zhi Pro Fac Gar Turns Passed 14463 | 67 449 891 233 640 883 298 1363 1107 2483 1207 429 1163 655 198 637 137 164 112 204 53 1090 Spaces Moved 10489 | 51 306 664 169 396 659 264 635 553 1455 460 96 978 278 144 1156 335 380 213 450 96 751 Core 1254 | 6 . . . . . . . . . 47 96 526 49 103 . . 39 54 . . 334 Treads 3215 | . . . . . . . 530 553 1455 413 . . 229 35 . . . . . . . Legs 3060 | 45 306 664 169 396 659 264 105 . . . . 452 . . . . . . . . . Wheels . | . . . . . . . . . . . . . . . . . . . . . . Hover 1122 | . . . . . . . . . . . . . . . . . . 159 450 96 417 Flight 1838 | . . . . . . . . . . . . . . 6 1156 335 341 . . . . Fastest Speed 35 | 50 120 120 105 112 112 112 165 165 165 160 450 50 50 37 35 40 40 42 42 42 42 Average Speed 115 | 111 120 120 116 147 133 112 167 165 165 241 450 112 140 102 37 40 41 45 42 42 45 Slowest Speed 450 | 120 120 120 120 190 190 112 182 165 165 450 450 450 160 300 40 40 50 300 42 42 50 Overloaded Moves . | . . . . . . . . . . . . . . . . . . . . . . Propulsion Burnouts . | . . . . . . . . . . . . . . . . . . . . . . Robots Hopped 11 | . . . . . . . . . . . . . . . 9 1 1 . . . . Potential Cave-ins . | . . . . . . . . . . . . . . . . . . . . . . Cave-ins Triggered . | . . . . . . . . . . . . . . . . . . . . . . Exploration Rate (%) 51 | 4 49 100 18 68 91 59 43 16 97 56 72 87 2 78 28 58 45 62 58 3 45 Regions Visited 21 Branch Regions 12 Pre-discovered Areas 7 | . . 1 . 1 1 . . . 1 . 1 1 . . . . . . 1 . . Known Exits Taken 13 | . . . 1 1 1 1 1 1 1 1 1 . 1 . 1 . . . 1 1 . Unknown Exits Taken 7 | 1 1 1 . . . . . . . . . 1 . . . 1 1 1 . . . Scrap Searched 18 | . . 1 . 1 . 1 . . 3 2 . 5 . . . 1 1 . 3 . . Spaces Dug 22 | . . . . . . . 5 . . . . . 17 . . . . . . . . Terrain Destroyed 163 | . . . . . . . 47 6 10 . . . 39 61 . . . . . . . Melee 5 | . . . . . . . 5 . . . . . . . . . . . . . . Projectile 58 | . . . . . . . 42 6 10 . . . . . . . . . . . . AOE 100 | . . . . . . . . . . . . . 39 61 . . . . . . . Terrain Rammed . | . . . . . . . . . . . . . . . . . . . . . . Walls Destroyed . | . . . . . . . . . . . . . . . . . . . . . . Machines Disabled . | . . . . . . . . . . . . . . . . . . . . . . Actions | -11 -10 -10 -9 -9 -9 -8 -8 -7 -7 -7 -7 -6 -6 -6 -5 -5 -5 -5 -4 -4 -4 --------- Run | Yrd Mat Min Mat Min Exi Min Mat Fac Low Low Dat Pro Fac DSF Fac Upp Upp Zhi Pro Fac Gar Total 12621 | 60 353 740 196 436 665 266 911 746 1524 531 96 1017 538 176 1350 336 386 226 464 108 1496 Wait 1646 | . 21 56 14 24 . . 167 151 11 4 1 2 256 12 192 . 5 . 9 12 709 Move 10443 | 50 305 663 168 395 658 263 634 552 1454 459 95 977 277 143 1137 332 377 212 449 95 748 Hop 11 | . . . . . . . . . . . . . . . 9 1 1 . . . . Pick Up 49 | 4 5 1 1 1 1 1 9 5 3 . . 4 . . 1 1 2 2 3 . 5 Fast Attach 43 | 2 . . 1 1 1 . 1 1 7 3 . 3 3 9 5 . 1 5 . . . Attach 37 | 4 . . 2 1 1 . 10 2 . . . 7 . . 2 2 . . 2 1 3 Detach 12 | . . . . . . . 11 . . 1 . . . . . . . . . . . Swap 20 | . 2 . 2 1 . 1 3 4 2 3 . 1 . . . . . . . . 1 Drop 35 | . . . 1 . 4 1 8 2 5 1 . 4 . 3 2 . . 3 1 . . Fire 256 | . 20 18 6 11 . . 52 28 41 56 . 11 2 9 2 . . . . . . Melee 25 | . . . 1 2 . . 16 . . . . 6 . . . . . . . . . Ram 14 | . . . . . . . . . . . . 2 . . . . . . . . 12 Kick 2 | . . 2 . . . . . . . . . . . . . . . . . . . Crush 2 | . . . . . . . . 1 1 . . . . . . . . . . . . Escape Stasis 18 | . . . . . . . . . . . . . . . . . . . . . 18 Rewire 8 | . . . . . . . . . . 4 . . . . . . . 4 . . . Trap . | . . . . . . . . . . . . . . . . . . . . . . Miscellaneous . | . . . . . . . . . . . . . . . . . . . . . . Route ------- -11/Scrapyard -10/Materials (discovered 2 exits: *Mat / *Min) -10/Mines (discovered 2 exits: *Mat x2) -9/Materials (discovered 2 exits: *Min x2) -9/Mines (discovered 2 exits: *Mat / *Exi) -9/Exiles -8/Mines -8/Materials -7/Factory -7/Lower Caves -7/Lower Caves -7/Data Miner -6/Proximity Caves -6/Factory (discovered 3 exits: Fac / Low / DSF) -6/DSF -5/Factory (discovered 6 exits: *Fac x4 / *Upp x2) -5/Upper Caves -5/Upper Caves -5/Zhirov -4/Proximity Caves -4/Factory (discovered 3 exits: Res / Upp / Gar) -4/Garrison (discovered 1 exit: [*Fac]) History --------- Turn | Location | Event 3 | -11/Scrapyard | Discovered new exit (range 16) 68 | -11/Scrapyard | Entered Materials 215 | -10/Materials | Discovered new exit (range 8) 317 | -10/Materials | Build established: Mutant 322 | -10/Materials | Discovered new exit (range 14) 517 | -10/Materials | Entered Mines 583 | -10/Mines | Discovered new exit (range 9) 717 | -10/Mines | Learned location of Recycling (-9) 859 | -10/Mines | Discovered new exit (range 13) 1408 | -10/Mines | Entered Materials 1408 | -9/Materials | Accompanied by 2 allies 1408 | -9/Materials | Evolved 2 slots: Utility x2 1409 | -9/Materials | Identified exit to Mines 1413 | -9/Materials | Led the pair of lost Derelicts to an unsafe place 1569 | -9/Materials | Central database locked down 1641 | -9/Materials | Entered Mines 1641 | -9/Mines | Accompanied by 2 allies 1643 | -9/Mines | Discovered new exit (range 11) 1647 | -9/Mines | Learned location of Zion (-6) 1655 | -9/Mines | Identified exit to Materials 1846 | -9/Mines | A weapon hastily lodged in a ceiling crevice suddenly fell to the ground 1893 | -9/Mines | Assembled infested the area 2269 | -9/Mines | Deemed a non-threat by the Exiles lab entrance 2271 | -9/Mines | Discovered new exit (range 6) 2279 | -9/Mines | Identified exit to Exiles 2281 | -9/Mines | Entered Exiles 2331 | -9/Exiles | Met 8R-AWN 2365 | -9/Exiles | Met EX-HEX 2458 | -9/Exiles | Met EX-BIN 2513 | -9/Exiles | Aligned with FarCom system 2515 | -9/Exiles | Given EX-Vault access code 2608 | -9/Exiles | Opened EX-Vault 2624 | -9/Exiles | Found Prototype Ballistic Gun 2655 | -9/Exiles | Warned to stay clear of 0b10 Research branches 2690 | -9/Exiles | Met EX-DEC 2775 | -9/Exiles | Visited The Gauntlet 3053 | -9/Exiles | Discovered new exit (range 10) 3162 | -9/Exiles | Identified exit to Mines 3164 | -9/Exiles | Left Exiles lab with XL Autogun Array 3164 | -9/Exiles | Entered Mines 3319 | -8/Mines | Discovered exit to Materials (range 7) 3462 | -8/Mines | Entered Materials 3462 | -8/Materials | Evolved 2 slots: Weapon x2 3464 | -8/Materials | Identified XL Autogun Array 3751 | -8/Materials | Build established: Skirmisher 3964 | -8/Materials | Central database locked down 4589 | -8/Materials | Discovered new exit (range 15) 4823 | -8/Materials | Identified exit to Factory 4825 | -8/Materials | Entered Factory 4825 | -7/Factory | Evolved 2 slots: Utility x2 5115 | -7/Factory | Repaired Cryofiber Web 5315 | -7/Factory | Garrison activated, responded to threat 5878 | -7/Factory | Discovered new exit (range 16) 5931 | -7/Factory | Identified exit to Lower Caves 5932 | -7/Factory | Entered Lower Caves 6200 | -7/Lower Caves | Encountered a Warlord checkpoint 6349 | -7/Lower Caves | Build established: Gunner 6658 | -7/Lower Caves | Discovered new exit (range 16) 6699 | -7/Lower Caves | Identified exit to Lower Caves 7081 | -7/Lower Caves | Entered an active Warlord outpost 7123 | -7/Lower Caves | Learned Factory stockpile data 7123 | -7/Lower Caves | Learned Armory security intel 7123 | -7/Lower Caves | Learned Armory terminal intel 7123 | -7/Lower Caves | Learned Factory garrison access intel 8415 | -7/Lower Caves | Entered another Lower Caves area 8417 | -7/Lower Caves | Attracted the attention of an 0b10 checkpoint 8628 | -7/Lower Caves | Attracted the attention of an 0b10 outpost 9378 | -7/Lower Caves | Learned location of 1 exit from Factory 9563 | -7/Lower Caves | Discovered new exit (range 9) 9604 | -7/Lower Caves | Identified exit to Data Miner 9622 | -7/Lower Caves | Entered Data Miner 9623 | -7/Data Miner | Discovered new exit (range 6) 9655 | -7/Data Miner | Identified exit to Proximity Caves 9722 | -7/Data Miner | Met Data Miner 9839 | -7/Data Miner | Learned location of Section 7 (-2) 9839 | -7/Data Miner | Acquired the access code to Warlord's prototype stash 9916 | -7/Data Miner | Received God Mode back door access code from Data Miner 10051 | -7/Data Miner | Entered Proximity Caves 10408 | -6/Proximity Caves | Core integrity fell below 50% 10419 | -6/Proximity Caves | Escorted by Enhanced Grunt 10457 | -6/Proximity Caves | Lost 9 parts (1p2u6w) 10718 | -6/Proximity Caves | Build established: Hacker-Mutant 10877 | -6/Proximity Caves | Attracted the attention of an 0b10 outpost 11019 | -6/Proximity Caves | Core integrity fell below 20% 11184 | -6/Proximity Caves | Spotted B-75 Beast 11210 | -6/Proximity Caves | Discovered new exit (range 7) 11214 | -6/Proximity Caves | Entered Factory 11214 | -6/Factory | Evolved 2 slots: Utility x2 11215 | -6/Factory | Identified exit to Lower Caves 11216 | -6/Factory | Identified exit to Factory 11218 | -6/Factory | Loaded intel: 4 garrison access locations 11268 | -6/Factory | Found Prototype Launcher 11268 | -6/Factory | Identified Rocket Array 11867 | -6/Factory | Identified exit to DSF 11869 | -6/Factory | Entered DSF 11933 | -6/DSF | Additional patrols routed to DSF 12015 | -6/DSF | Lost 3 parts (1n2w) 12057 | -6/DSF | Discovered exit to Factory (range 16) 12067 | -6/DSF | Entered Factory 12067 | -5/Factory | Evolved 2 slots: Power x1, Propulsion x1 12068 | -5/Factory | Identified exit to Upper Caves 12254 | -5/Factory | Central database locked down 12284 | -5/Factory | Identified exit to Factory 12353 | -5/Factory | Build established: Wizard-Mutant 12484 | -5/Factory | Lost 3 parts (1n2u) 12604 | -5/Factory | Fabricated Q-thruster? 12668 | -5/Factory | Lost 3 parts (2p1n) 12704 | -5/Factory | Entered Upper Caves 12736 | -5/Upper Caves | Lost 3 parts (1n2u) 12748 | -5/Upper Caves | Learned location of 1 exit from Factory 12754 | -5/Upper Caves | Build established: Hacker-Mutant 12837 | -5/Upper Caves | Discovered new exit (range 12) 12841 | -5/Upper Caves | Entered another Upper Caves area 12843 | -5/Upper Caves | Attracted the attention of an 0b10 checkpoint 12913 | -5/Upper Caves | Attracted the attention of an 0b10 outpost 12991 | -5/Upper Caves | Core integrity fell below 50% 13000 | -5/Upper Caves | Learned 12 Factory zone layouts 13002 | -5/Upper Caves | Discovered new exit (range 6) 13005 | -5/Upper Caves | Entered Zhirov 13005 | -5/Zhirov | Discovered new exit (range 3) 13015 | -5/Zhirov | Met Zhirov 13104 | -5/Zhirov | Zhirov requested help retrieving the SGEMP Prototype 13117 | -5/Zhirov | Entered Proximity Caves 13249 | -4/Proximity Caves | Attracted the attention of an 0b10 checkpoint 13258 | -4/Proximity Caves | Learned location of Testing (-2) 13314 | -4/Proximity Caves | Discovered exit to Factory (range 6) 13321 | -4/Proximity Caves | Entered Factory 13321 | -4/Factory | Evolved 2 slots: Utility x2 13322 | -4/Factory | Identified exit to Research 13323 | -4/Factory | Identified exit to Upper Caves 13368 | -4/Factory | Identified exit to Garrison 13374 | -4/Factory | Entered Garrison 13629 | -4/Garrison | Build established: Wizard-Mutant 13818 | -4/Garrison | Triggered checkpoint 14291 | -4/Garrison | Triggered checkpoint 14294 | -4/Garrison | Triggered checkpoint 14322 | -4/Garrison | Lost 11 parts (2p3n6u) 14330 | -4/Garrison | Discovered new exit (range 10) 14335 | -4/Garrison | Attempted to access garrison exit controls, blocked by remote lockdown 14366 | -4/Garrison | Core integrity fell below 50% 14428 | -4/Garrison | Triggered checkpoint 14429 | -4/Garrison | Core integrity fell below 20% 14454 | -4/Garrison | Triggered checkpoint 14464 | -4/Garrison | Destroyed by G-67 Veteran with Plasma Rifle Last Messages --------------- 14429_ A bubble of rippling energy engulfs the area. 14429_ Field strength at 94. 14429_ Field strength at 88. 14430_ Field strength at 82. 14431_ Field strength at 76. 14432_ Field strength at 70. 14433_ Field strength at 64. 14434_ Field strength at 58. 14435_ Field strength at 52. 14436_ Field strength at 46. 14437_ Field strength at 40. 14438_ Field strength at 34. 14439_ Field strength at 28. 14440_ Penetrated by Slug. 14440_ Field strength at 3. 14441_ Stasis field depleted. 14450_ System corrupted: Matter fused (-7). 14454_ Beams of light sweep through the air. An alarm sounds. 14456_ Acquired Com. HERF Cannon. 14460_ Slammed into G-67 Veteran. Map ----- +----------------------------------------------------+ | ??+?????????????????????????????????????????????? | | #??????? +????????????????????????????????????? | | +##""""## #????????????????????????????????????? | | #????????????????????????????????????? | | +????????????????????????????????????? | | #????????????????????????????????????? | | ## ## #????????????????????????????????????? | | ## ## #????????????????????????????????????? | | ^ "????????????????????????????????????? | | "????????????????????????????????????? | | "????????????????????????????????????? | | "????????????????????????????????????? | | ## ## #????????????????????????????????????? | | ## ## ############?????????????????????????? | | #???????YY????????????????? | | #?????##++##??????????????? | | #?????#]]]]#??????????????? | | ## ###+##+##+### #?????#] ]#??????????????? | | ## #???????????+ #?????#] ]#??????????????? | | #######???????????# #?????#] ]#??????????????? | | #?????????????????# #?????#] #??????????????? | | #?????????????????# ##????## ##?????#????????? | | #?????????????????# T#?????# #?????#"????????? | | #?????????????????# ######## #######"#####???? | | #?????############# g g + """""#???? | | #?????# ## @ g + " "#???? | | +#?????# ## #### ####?# "#???? | | ###???# ## #??# #????# " "#???? | | ""#???# ## #??##+##????# """ ""#???? | | !"#???# [ ## #???????????# " #???? | | !"#???# ## +g?g????????+ #???? | | !"#???# ## #???????????# #???? | | !"#???# ## #???????????# #???? | | !"#???# [ ! ## g #?????#?????##### #####???? | | !"#???# ## #####+###########+#####???? | | ""#???## ########## #???? | | """#????# #???#????+ #???? | | """#????# #???# ???# h #???? | | ####????# #??##+???# #################### #???? | | ????????# #??# ??#g^#??????????????????# #???? | | ????????# #### ### ^#??????????????????# #???? | | ????????# g ^#??????????????????# #???? | | ????????# ^#??????????????????# #???? | | ????????###### ######??????????????????# #???? | | ????????????#"""""#??????????????????????# #???? | | ????????????#######??????????????????????# #???? | | ?????????????????????????????????????????# #???? | | ?????????????????????????????????????????# < #???? | | ?????????????????????????????????????????# #???? | | ?????????????????????????????????????????#####???? | +----------------------------------------------------+ Best States ------------- Heat Dissipation 43 Energy Generation 38 Energy Capacity 715 Matter Stores 450 Matter Capacity 450 Sight Range 16 Robot Scan Range 15 Terrain Scan Density 110 Cloak Strength 3 Base Temperature (-) 100 Corruption Block 15 Core Shielding 40 Phase Shifting 10 Evasion (%) 63 Target Analysis 5 Recoil Reduction 2 Offensive Hacking 53 Defensive Hacking 11 Item Schematics ----------------- Combat Drone Bay | -7/Data Miner | Free Lgt. Regenerative Plating | -7/Data Miner | Free Multireflex Exoskeleton | -7/Data Miner | Free Gravity Neutralizer | -7/Data Miner | Free Com. Ion Cannon | -7/Data Miner | Free Thunder Leg | -7/Data Miner | Free Adv. Cooling System | -7/Data Miner | Free Lrn. Proton Cannon | -7/Data Miner | Free Centrium Wheel | -7/Data Miner | Free Imp. System Restoration Module | -5/Factory | Scanalyzed Assault Drone Bay | -5/Zhirov | Free Exp. Heat Sink | -5/Zhirov | Free Exp. Optical Array | -5/Zhirov | Free Imp. Arc Thrower | -5/Zhirov | Free Robot Schematics ------------------ S-27 Virus | -7/Data Miner | Free B-48 Gladiator | -7/Data Miner | Free I-36 Angel | -7/Data Miner | Free L-41 Fighter | -7/Data Miner | Free G-50 Soldier | -7/Data Miner | Free P-60 Hacker | -7/Data Miner | Free Fabricated ------------ Q-thruster | x2 | -5/Factory | Preloaded Repaired ---------- Cryofiber Web | 50% | -7/Factory Studied --------- Aluminum Leg | -9/Materials | Hacked Axe | -8/Materials | Hacked Arm. Treads | -8/Materials | Hacked Alien Tech Used ----------------- None Achievements -------------- Botjacking Ew, Corruption Ghost 'Em Sixth Sense That Tickles We Love MA Window Shopping Challenges ------------ None Game ------ Seed PotentialLinkedCapacitor Manual? 0 Play Time 01:48:18 Cumulative 198.8 hours Start 2025.10.25 @ 08:15:13 End 2025.10.25 @ 12:57:49 Sessions 5 Manual Loads 0 Difficulty Rogue Special Mode None Game No. 233 Rogue 59 Adventurer 174 Explorer 0 Win Type - Total 1 Types 1/0/0/0/0/0/0/0/0/0 Lore% 46 Gallery% 57 Achievement% 35 Wizard Run 0 Options --------- Layout 0 ASCII 0 Keyboard 1 Movement Numpad Keybinds 0 Fullscreen 1 Font 18/Terminus Map View 76x50 Zoom Use 0% Tactical HUD 1 Map Filters NONE Filters NONE Steam 1 RUN: 0de62e23-9142-4963-8673-411080a50971